[Event "*** Titled Tuesday Blitz"]
[Site "Chess.com"]
[Date "2020.05.19"]
[Round "7"]
[White "talaicito"]
[Black "silverback96"]
[Result "1-0"]
[WhiteElo "2178"]
[BlackElo "2307"]
[TimeControl "180+1"]
[EndTime "13:21:39 PDT"]
[Termination "talaicito won by checkmate"]

1. d4 {[%clk 0:03:00.9]} 1... Nf6 {[%clk 0:02:59.3]} 2. Nc3 {[%clk 0:02:59.2]}
2... d5 {[%clk 0:02:58.7]} 3. Bf4 {[%clk 0:02:58.4]} 3... e6 {[%clk 0:02:58.6]}
4. e3 {[%clk 0:02:58.3]} 4... Bb4 {[%clk 0:02:58.4]} 5. Ne2 {[%clk 0:02:57.2]}
5... Nh5 {[%clk 0:02:51.2]} 6. Bg3 {[%clk 0:02:48.6]} 6... c5 {[%clk 0:02:31]}
7. a3 {[%clk 0:02:44.9]} 7... Ba5 {[%clk 0:02:30]} 8. dxc5 {[%clk 0:02:38.1]}
8... Nxg3 {[%clk 0:02:28]} 9. hxg3 {[%clk 0:02:37.9]} 9... Bc7 {[%clk 0:02:18]}
10. Qd4 {[%clk 0:02:34.4]} 10... Qf6 {[%clk 0:02:12]} 11. Qxf6 {[%clk
0:02:14.4]} 11... gxf6 {[%clk 0:02:12.9]} 12. O-O-O {[%clk 0:01:56]} 12... Nd7
{[%clk 0:02:05.2]} 13. Nb5 {[%clk 0:01:54.3]} 13... Bb8 {[%clk 0:02:04.9]} 14.
Nd6+ {[%clk 0:01:54.4]} 14... Ke7 {[%clk 0:01:57.8]} 15. Nxc8+ {[%clk
0:01:47.6]} 15... Rxc8 {[%clk 0:01:58.7]} 16. Rxh7 {[%clk 0:01:47.3]} 16... Nxc5
{[%clk 0:01:57.9]} 17. f3 {[%clk 0:01:22.9]} 17... Bd6 {[%clk 0:01:42.6]} 18. g4
{[%clk 0:01:15.3]} 18... Rab8 {[%clk 0:01:40.3]} 19. Nd4 {[%clk 0:01:10.3]}
19... a6 {[%clk 0:01:40.7]} 20. Kd2 {[%clk 0:00:55.1]} 20... Na4 {[%clk
0:01:32.1]} 21. Rb1 {[%clk 0:00:44.7]} 21... b5 {[%clk 0:01:30.7]} 22. c3 {[%clk
0:00:43.7]} 22... Nb6 {[%clk 0:01:17.2]} 23. Bd3 {[%clk 0:00:34.7]} 23... Be5
{[%clk 0:01:10.1]} 24. Bg6 {[%clk 0:00:26.7]} 24... Rf8 {[%clk 0:01:08.3]} 25.
Nc6+ {[%clk 0:00:24.4]} 25... Kd6 {[%clk 0:01:01.8]} 26. Nxb8 {[%clk 0:00:22.6]}
26... Nc4+ {[%clk 0:00:44]} 27. Ke2 {[%clk 0:00:22.1]} 27... fxg6 {[%clk
0:00:42.1]} 28. Nxa6 {[%clk 0:00:21.4]} 28... Ra8 {[%clk 0:00:36.1]} 29. Nb4
{[%clk 0:00:21.4]} 29... Rc8 {[%clk 0:00:28.9]} 30. f4 {[%clk 0:00:20.7]} 30...
g5 {[%clk 0:00:24.9]} 31. fxe5+ {[%clk 0:00:20.4]} 31... Kxe5 {[%clk 0:00:25.5]}
32. Nd3+ {[%clk 0:00:18.8]} 32... Ke4 {[%clk 0:00:25.2]} 33. Re7 {[%clk
0:00:18.4]} 33... Rc6 {[%clk 0:00:24.5]} 34. Nf2+ {[%clk 0:00:17.6]} 34... Ke5
{[%clk 0:00:24.3]} 35. Nd3+ {[%clk 0:00:16.8]} 35... Ke4 {[%clk 0:00:24.3]} 36.
Nf2+ {[%clk 0:00:16.9]} 36... Ke5 {[%clk 0:00:24.4]} 37. b3 {[%clk 0:00:17.4]}
37... Nxa3 {[%clk 0:00:24.1]} 38. Ra1 {[%clk 0:00:16.6]} 38... b4 {[%clk
0:00:20.6]} 39. Nd3+ {[%clk 0:00:15.7]} 39... Ke4 {[%clk 0:00:18.8]} 40. Nxb4
{[%clk 0:00:16.2]} 40... Rxc3 {[%clk 0:00:17.4]} 41. Rxa3 {[%clk 0:00:16.6]}
41... Rxe3+ {[%clk 0:00:17.8]} 42. Kd2 {[%clk 0:00:16]} 42... e5 {[%clk
0:00:17.5]} 43. Ra5 {[%clk 0:00:14.4]} 43... d4 {[%clk 0:00:17.6]} 44. Nc6
{[%clk 0:00:13.1]} 44... Rg3 {[%clk 0:00:17.8]} 45. Nxe5 {[%clk 0:00:12.8]}
45... Rxg2+ {[%clk 0:00:18.3]} 46. Ke1 {[%clk 0:00:12.9]} 46... fxe5 {[%clk
0:00:16.4]} 47. Rexe5+ {[%clk 0:00:12.5]} 47... Kd3 {[%clk 0:00:17]} 48. Rxg5
{[%clk 0:00:12.5]} 48... Rb2 {[%clk 0:00:16.6]} 49. Rab5 {[%clk 0:00:12.2]}
49... Rb1+ {[%clk 0:00:17]} 50. Kf2 {[%clk 0:00:12.4]} 50... Kd2 {[%clk
0:00:17.3]} 51. Rbd5 {[%clk 0:00:12.3]} 51... d3 {[%clk 0:00:17.2]} 52. Rd4
{[%clk 0:00:12.4]} 52... Rxb3 {[%clk 0:00:16.1]} 53. Rgd5 {[%clk 0:00:12.4]}
53... Kc2 {[%clk 0:00:14.7]} 54. g5 {[%clk 0:00:12.8]} 54... Rc3 {[%clk
0:00:14.9]} 55. Rxd3 {[%clk 0:00:11.6]} 55... Rc6 {[%clk 0:00:11.7]} 56. Rd6
{[%clk 0:00:11.3]} 56... Rc7 {[%clk 0:00:11.5]} 57. g6 {[%clk 0:00:11.5]} 57...
Rc5 {[%clk 0:00:11.6]} 58. g7 {[%clk 0:00:09.9]} 58... Rf5+ {[%clk 0:00:11.8]}
59. Ke3 {[%clk 0:00:09.4]} 59... Rg5 {[%clk 0:00:12]} 60. Rd7 {[%clk 0:00:09.2]}
60... Rg3+ {[%clk 0:00:12.1]} 61. Kf4 {[%clk 0:00:09.1]} 61... Rg2 {[%clk
0:00:12.5]} 62. Rd2+ {[%clk 0:00:08.7]} 62... Rxd2 {[%clk 0:00:11.8]} 63. Rxd2+
{[%clk 0:00:09.6]} 63... Kxd2 {[%clk 0:00:12.7]} 64. g8=Q {[%clk 0:00:09.4]}
64... Ke2 {[%clk 0:00:13.6]} 65. Qc4+ {[%clk 0:00:08.6]} 65... Ke1 {[%clk
0:00:14.5]} 66. Qc2 {[%clk 0:00:08.1]} 66... Kf1 {[%clk 0:00:14.4]} 67. Kf3
{[%clk 0:00:08.3]} 67... Kg1 {[%clk 0:00:15.3]} 68. Qg2# {[%clk 0:00:08.4]} 1-0

[Event "*** Titled Tuesday Blitz"]
[Site "Chess.com"]
[Date "2020.05.19"]
[Round "7"]
[White "wonderfultime"]
[Black "TenisMaster"]
[Result "1-0"]
[WhiteElo "3005"]
[BlackElo "2789"]
[TimeControl "180+1"]
[EndTime "13:21:41 PDT"]
[Termination "wonderfultime won on time"]

1. d4 {[%clk 0:02:56.3]} 1... Nf6 {[%clk 0:02:52]} 2. Nf3 {[%clk 0:02:56.4]}
2... d5 {[%clk 0:02:51.4]} 3. Bf4 {[%clk 0:02:56.4]} 3... c5 {[%clk 0:02:51]} 4.
c3 {[%clk 0:02:56.6]} 4... e6 {[%clk 0:02:45.6]} 5. e3 {[%clk 0:02:54.9]} 5...
Bd6 {[%clk 0:02:45.3]} 6. Bb5+ {[%clk 0:02:43.9]} 6... Nc6 {[%clk 0:02:38.8]} 7.
Bg3 {[%clk 0:02:44.3]} 7... Ne4 {[%clk 0:02:25]} 8. Nbd2 {[%clk 0:02:39.9]} 8...
Nxg3 {[%clk 0:02:24.7]} 9. hxg3 {[%clk 0:02:40.8]} 9... Bd7 {[%clk 0:02:20.2]}
10. Bd3 {[%clk 0:02:36.6]} 10... h6 {[%clk 0:02:19.6]} 11. O-O {[%clk
0:02:35.4]} 11... O-O {[%clk 0:02:18]} 12. Qe2 {[%clk 0:02:35.7]} 12... Re8
{[%clk 0:02:16.5]} 13. dxc5 {[%clk 0:02:33.9]} 13... Bxc5 {[%clk 0:02:16.2]} 14.
e4 {[%clk 0:02:34.6]} 14... Bf8 {[%clk 0:02:01.6]} 15. Rfe1 {[%clk 0:02:31.9]}
15... dxe4 {[%clk 0:02:00.8]} 16. Bxe4 {[%clk 0:02:23.7]} 16... Qc7 {[%clk
0:01:59]} 17. Rad1 {[%clk 0:02:18.1]} 17... Rad8 {[%clk 0:01:57.2]} 18. Nc4
{[%clk 0:02:18.4]} 18... Bc8 {[%clk 0:01:52.4]} 19. Bc2 {[%clk 0:02:12.2]} 19...
g6 {[%clk 0:01:49.8]} 20. Ne3 {[%clk 0:01:31.6]} 20... Bg7 {[%clk 0:01:45.6]}
21. Bb3 {[%clk 0:01:27.6]} 21... Rxd1 {[%clk 0:01:29.3]} 22. Rxd1 {[%clk
0:01:28.5]} 22... Rd8 {[%clk 0:01:29.6]} 23. Re1 {[%clk 0:01:24.9]} 23... Na5
{[%clk 0:01:25.7]} 24. Bc2 {[%clk 0:01:20.2]} 24... b6 {[%clk 0:01:25.5]} 25.
Be4 {[%clk 0:01:09.6]} 25... Nb7 {[%clk 0:01:20.1]} 26. Bb1 {[%clk 0:00:45.3]}
26... Nc5 {[%clk 0:01:17.5]} 27. Rd1 {[%clk 0:00:43.8]} 27... Ba6 {[%clk
0:01:10.1]} 28. Qe1 {[%clk 0:00:43.6]} 28... Nd3 {[%clk 0:00:45.9]} 29. Bxd3
{[%clk 0:00:42.8]} 29... Rxd3 {[%clk 0:00:45.4]} 30. Rxd3 {[%clk 0:00:40.5]}
30... Bxd3 {[%clk 0:00:46.3]} 31. Ng4 {[%clk 0:00:38.6]} 31... Bc4 {[%clk
0:00:39.6]} 32. a3 {[%clk 0:00:32.7]} 32... Bd5 {[%clk 0:00:37]} 33. Ne3 {[%clk
0:00:32.4]} 33... Bc6 {[%clk 0:00:35.2]} 34. Qe2 {[%clk 0:00:32.1]} 34... Qd7
{[%clk 0:00:34.7]} 35. Ng4 {[%clk 0:00:30.7]} 35... Qd5 {[%clk 0:00:29.9]} 36.
Ne3 {[%clk 0:00:25.4]} 36... Qe4 {[%clk 0:00:25.4]} 37. Qa6 {[%clk 0:00:24.8]}
37... Qb1+ {[%clk 0:00:23.1]} 38. Kh2 {[%clk 0:00:20.9]} 38... Bxf3 {[%clk
0:00:21.3]} 39. gxf3 {[%clk 0:00:21.8]} 39... Qxb2 {[%clk 0:00:21.2]} 40. Kg2
{[%clk 0:00:20.6]} 40... Qxc3 {[%clk 0:00:15.8]} 41. Qxa7 {[%clk 0:00:20.6]}
41... Qc6 {[%clk 0:00:15.1]} 42. Qb8+ {[%clk 0:00:19.4]} 42... Kh7 {[%clk
0:00:14.5]} 43. Qa7 {[%clk 0:00:19.6]} 43... Kg8 {[%clk 0:00:12.7]} 44. Qb8+
{[%clk 0:00:20.1]} 44... Bf8 {[%clk 0:00:12.8]} 45. Qd8 {[%clk 0:00:19.9]} 45...
Qd6 {[%clk 0:00:12.4]} 46. Qe8 {[%clk 0:00:08.8]} 46... Qxa3 {[%clk 0:00:10.7]}
47. Ng4 {[%clk 0:00:09.1]} 47... Qe7 {[%clk 0:00:09]} 48. Qb8 {[%clk 0:00:08.6]}
48... Qd6 {[%clk 0:00:05.4]} 49. Nf6+ {[%clk 0:00:08.9]} 49... Kh8 {[%clk
0:00:05.6]} 50. Qa8 {[%clk 0:00:07]} 50... b5 {[%clk 0:00:03.9]} 51. Ne4 {[%clk
0:00:07.2]} 51... Qe7 {[%clk 0:00:03.8]} 52. Qb8 {[%clk 0:00:07.7]} 52... b4
{[%clk 0:00:03.5]} 53. Qe5+ {[%clk 0:00:08]} 53... Bg7 {[%clk 0:00:02.7]} 54.
Qb8+ {[%clk 0:00:08.3]} 54... Kh7 {[%clk 0:00:03.4]} 55. Qb5 {[%clk 0:00:06.4]}
55... f5 {[%clk 0:00:03.4]} 56. Nc5 {[%clk 0:00:06.4]} 56... Bf8 {[%clk
0:00:01.5]} 57. Nd7 {[%clk 0:00:05.9]} 57... Bg7 {[%clk 0:00:01.3]} 58. Qb7
{[%clk 0:00:06]} 58... Bf8 {[%clk 0:00:01.2]} 59. Nxf8+ {[%clk 0:00:05.6]} 1-0

[Event "*** Titled Tuesday Blitz"]
[Site "Chess.com"]
[Date "2020.05.19"]
[Round "7"]
[White "santosalberto1987"]
[Black "cassoulet"]
[Result "1/2-1/2"]
[WhiteElo "2488"]
[BlackElo "2642"]
[TimeControl "180+1"]
[EndTime "13:21:43 PDT"]
[Termination "Game drawn - insufficient material"]

1. e4 {[%clk 0:03:00.8]} 1... c5 {[%clk 0:02:58.9]} 2. Nf3 {[%clk 0:03:00.9]}
2... Nc6 {[%clk 0:02:59]} 3. Nc3 {[%clk 0:03:00.2]} 3... g6 {[%clk 0:02:59]} 4.
d4 {[%clk 0:03:00.3]} 4... cxd4 {[%clk 0:02:59.9]} 5. Nxd4 {[%clk 0:03:01.2]}
5... Bg7 {[%clk 0:03:00.4]} 6. Be3 {[%clk 0:03:01.7]} 6... Nf6 {[%clk
0:03:00.6]} 7. Bc4 {[%clk 0:03:02.3]} 7... O-O {[%clk 0:03:00.7]} 8. Bb3 {[%clk
0:03:02.8]} 8... d6 {[%clk 0:03:00.9]} 9. f3 {[%clk 0:03:03]} 9... Nxd4 {[%clk
0:03:01.2]} 10. Bxd4 {[%clk 0:03:02.1]} 10... Be6 {[%clk 0:03:02.1]} 11. Qd2
{[%clk 0:02:58.2]} 11... Qa5 {[%clk 0:02:59.3]} 12. O-O-O {[%clk 0:02:57.5]}
12... Rfc8 {[%clk 0:02:51.2]} 13. Kb1 {[%clk 0:02:57.3]} 13... Bxb3 {[%clk
0:02:29.7]} 14. cxb3 {[%clk 0:02:57]} 14... Rc6 {[%clk 0:02:23.8]} 15. h4 {[%clk
0:02:56.4]} 15... Rac8 {[%clk 0:02:21.7]} 16. h5 {[%clk 0:02:54.1]} 16... Nxh5
{[%clk 0:02:09.2]} 17. Bxg7 {[%clk 0:02:52]} 17... Kxg7 {[%clk 0:02:09.2]} 18.
g4 {[%clk 0:02:50.6]} 18... Rxc3 {[%clk 0:01:55.3]} 19. bxc3 {[%clk 0:02:46.5]}
19... Nf6 {[%clk 0:01:52.1]} 20. c4 {[%clk 0:02:42.6]} 20... Qxd2 {[%clk
0:01:45.7]} 21. Rxd2 {[%clk 0:02:42.5]} 21... h5 {[%clk 0:01:45.3]} 22. gxh5
{[%clk 0:02:41.3]} 22... Nxh5 {[%clk 0:01:46.2]} 23. e5 {[%clk 0:02:18.7]} 23...
dxe5 {[%clk 0:01:21.5]} 24. Rd7 {[%clk 0:02:17.7]} 24... Rb8 {[%clk 0:01:21.1]}
25. Rxe7 {[%clk 0:02:17.7]} 25... Kf6 {[%clk 0:01:21.1]} 26. Rc7 {[%clk
0:02:16.8]} 26... a6 {[%clk 0:01:14.7]} 27. c5 {[%clk 0:02:13.5]} 27... Ke6
{[%clk 0:01:11.2]} 28. c6 {[%clk 0:02:12.8]} 28... bxc6 {[%clk 0:01:07.2]} 29.
Rxc6+ {[%clk 0:02:12.8]} 29... Kf5 {[%clk 0:01:06.3]} 30. Rxa6 {[%clk
0:02:12.4]} 30... Nf4 {[%clk 0:01:06.1]} 31. Kc2 {[%clk 0:02:01.4]} 31... Nd5
{[%clk 0:01:03.5]} 32. Ra7 {[%clk 0:01:56.4]} 32... f6 {[%clk 0:01:03]} 33. a4
{[%clk 0:01:54.3]} 33... Kf4 {[%clk 0:01:00.4]} 34. Rh3 {[%clk 0:01:47.5]} 34...
Ne3+ {[%clk 0:00:56.7]} 35. Kc3 {[%clk 0:01:42.9]} 35... Nd5+ {[%clk 0:00:51.1]}
36. Kb2 {[%clk 0:01:40]} 36... f5 {[%clk 0:00:50]} 37. a5 {[%clk 0:01:38.3]}
37... Nb4 {[%clk 0:00:41.5]} 38. a6 {[%clk 0:01:33.6]} 38... Rc8 {[%clk
0:00:21.8]} 39. Ka3 {[%clk 0:01:25.7]} 39... Nd3 {[%clk 0:00:21.7]} 40. b4
{[%clk 0:01:04.4]} 40... Rc1 {[%clk 0:00:19.4]} 41. b5 {[%clk 0:01:01.4]} 41...
Rb1 {[%clk 0:00:17]} 42. Rb7 {[%clk 0:00:59.6]} 42... Nc5 {[%clk 0:00:16.6]} 43.
Rb8 {[%clk 0:00:52.2]} 43... Nd7 {[%clk 0:00:16.5]} 44. Rd8 {[%clk 0:00:33.4]}
44... Nb6 {[%clk 0:00:16.5]} 45. Rh6 {[%clk 0:00:23.2]} 45... Rxb5 {[%clk
0:00:11.6]} 46. Rxg6 {[%clk 0:00:23.3]} 46... Nc4+ {[%clk 0:00:09.1]} 47. Ka4
{[%clk 0:00:21.3]} 47... Rb1 {[%clk 0:00:09.3]} 48. Rd7 {[%clk 0:00:17.5]} 48...
Ra1+ {[%clk 0:00:06.9]} 49. Kb5 {[%clk 0:00:14.5]} 49... Ne3 {[%clk 0:00:05.6]}
50. a7 {[%clk 0:00:13.7]} 50... Kxf3 {[%clk 0:00:05.3]} 51. Rg8 {[%clk
0:00:13.5]} 51... Rxa7 {[%clk 0:00:04.4]} 52. Rxa7 {[%clk 0:00:13.4]} 52... e4
{[%clk 0:00:04.8]} 53. Rf7 {[%clk 0:00:12.1]} 53... f4 {[%clk 0:00:05]} 54. Rgf8
{[%clk 0:00:12.1]} 54... Ng2 {[%clk 0:00:05.1]} 55. Kc4 {[%clk 0:00:12.1]} 55...
e3 {[%clk 0:00:05.4]} 56. Kd3 {[%clk 0:00:12.6]} 56... e2 {[%clk 0:00:05.5]} 57.
Rxf4+ {[%clk 0:00:04.5]} 57... Nxf4+ {[%clk 0:00:06.4]} 58. Rxf4+ {[%clk
0:00:05]} 58... Kxf4 {[%clk 0:00:07.1]} 59. Kxe2 {[%clk 0:00:05.6]} 1/2-1/2

[Event "*** Titled Tuesday Blitz"]
[Site "Chess.com"]
[Date "2020.05.19"]
[Round "7"]
[White "DivyaDeshmukh23"]
[Black "Meri-Arabidze"]
[Result "0-1"]
[WhiteElo "2464"]
[BlackElo "2612"]
[TimeControl "180+1"]
[EndTime "13:21:45 PDT"]
[Termination "Meri-Arabidze won on time"]

1. e4 {[%clk 0:03:00.9]} 1... e5 {[%clk 0:02:59.7]} 2. Nc3 {[%clk 0:02:56.5]}
2... Nc6 {[%clk 0:02:58.9]} 3. Bc4 {[%clk 0:02:53.1]} 3... Nf6 {[%clk
0:02:58.5]} 4. d3 {[%clk 0:02:52.5]} 4... Na5 {[%clk 0:02:58.3]} 5. Nge2 {[%clk
0:02:51.1]} 5... Bc5 {[%clk 0:02:58.2]} 6. O-O {[%clk 0:02:46.3]} 6... O-O
{[%clk 0:02:58.1]} 7. Bg5 {[%clk 0:02:44.3]} 7... h6 {[%clk 0:02:55.4]} 8. Bh4
{[%clk 0:02:43.1]} 8... Nxc4 {[%clk 0:02:51.9]} 9. dxc4 {[%clk 0:02:42]} 9... g5
{[%clk 0:02:47.4]} 10. Bg3 {[%clk 0:02:41.8]} 10... d6 {[%clk 0:02:47.4]} 11. a3
{[%clk 0:02:38]} 11... a5 {[%clk 0:02:46.4]} 12. Kh1 {[%clk 0:02:36.9]} 12...
Be6 {[%clk 0:02:42.4]} 13. b3 {[%clk 0:02:32.9]} 13... Nh5 {[%clk 0:02:34.3]}
14. Qd2 {[%clk 0:02:14.8]} 14... Kh7 {[%clk 0:02:29.7]} 15. Na4 {[%clk
0:02:07.2]} 15... Ba7 {[%clk 0:02:18.6]} 16. c5 {[%clk 0:01:56.5]} 16... Bxc5
{[%clk 0:02:06.2]} 17. Nxc5 {[%clk 0:01:53.8]} 17... dxc5 {[%clk 0:02:01.8]} 18.
Qc3 {[%clk 0:01:44.7]} 18... Nxg3+ {[%clk 0:01:53.4]} 19. fxg3 {[%clk
0:01:45.6]} 19... c4 {[%clk 0:01:46.7]} 20. Rad1 {[%clk 0:01:32.6]} 20... Qe8
{[%clk 0:01:28.1]} 21. Qxe5 {[%clk 0:01:28.6]} 21... cxb3 {[%clk 0:01:26.8]} 22.
cxb3 {[%clk 0:01:29.5]} 22... Bxb3 {[%clk 0:01:23.2]} 23. Qf5+ {[%clk
0:01:28.8]} 23... Kg8 {[%clk 0:01:23.5]} 24. Rc1 {[%clk 0:01:16]} 24... Qc8
{[%clk 0:00:57.4]} 25. Qf6 {[%clk 0:01:06]} 25... Ra6 {[%clk 0:00:56.1]} 26. Qc3
{[%clk 0:01:04.1]} 26... Be6 {[%clk 0:00:53]} 27. Nd4 {[%clk 0:01:02.8]} 27...
a4 {[%clk 0:00:38.4]} 28. Rf6 {[%clk 0:00:57.7]} 28... c5 {[%clk 0:00:33.2]} 29.
Nb5 {[%clk 0:00:34.1]} 29... Kh7 {[%clk 0:00:26.3]} 30. e5 {[%clk 0:00:17.3]}
30... Qd7 {[%clk 0:00:22.5]} 31. Nd6 {[%clk 0:00:16.1]} 31... Rxd6 {[%clk
0:00:19.7]} 32. exd6 {[%clk 0:00:15.5]} 32... Qxd6 {[%clk 0:00:20.3]} 33. Qf3
{[%clk 0:00:12.7]} 33... Kg7 {[%clk 0:00:16.8]} 34. Rf1 {[%clk 0:00:10.8]} 34...
Qe5 {[%clk 0:00:17.1]} 35. Qh5 {[%clk 0:00:06.9]} 35... Qxf6 {[%clk 0:00:12.7]}
36. Rxf6 {[%clk 0:00:07.8]} 36... Kxf6 {[%clk 0:00:13.4]} 37. Qxh6+ {[%clk
0:00:08.7]} 37... Ke7 {[%clk 0:00:13.3]} 38. Qxg5+ {[%clk 0:00:09.6]} 38... Kd7
{[%clk 0:00:12]} 39. Qf4 {[%clk 0:00:10.5]} 39... c4 {[%clk 0:00:10.4]} 40. Qd4+
{[%clk 0:00:10.1]} 40... Ke7 {[%clk 0:00:10.2]} 41. Qc5+ {[%clk 0:00:10]} 41...
Ke8 {[%clk 0:00:10.6]} 42. Qb5+ {[%clk 0:00:08.9]} 42... Ke7 {[%clk 0:00:10.8]}
43. Qxb7+ {[%clk 0:00:08.5]} 43... Kf6 {[%clk 0:00:11]} 44. Qf3+ {[%clk
0:00:08.4]} 44... Kg7 {[%clk 0:00:10.9]} 45. Qc3+ {[%clk 0:00:07.7]} 45... f6
{[%clk 0:00:11]} 46. Qe3 {[%clk 0:00:06.5]} 46... Bf7 {[%clk 0:00:10.6]} 47. h3
{[%clk 0:00:06.1]} 47... Rc8 {[%clk 0:00:10.7]} 48. Qc3 {[%clk 0:00:05.7]} 48...
Rb8 {[%clk 0:00:10.7]} 49. Kg1 {[%clk 0:00:05.7]} 49... Rb3 {[%clk 0:00:10.7]}
50. Qa5 {[%clk 0:00:06]} 50... c3 {[%clk 0:00:10.6]} 51. Qxa4 {[%clk 0:00:06.1]}
51... c2 {[%clk 0:00:06.9]} 52. Qg4+ {[%clk 0:00:05]} 52... Kh7 {[%clk
0:00:05.3]} 53. Qf5+ {[%clk 0:00:03.4]} 53... Bg6 {[%clk 0:00:05.6]} 54. Qd7+
{[%clk 0:00:03.5]} 54... Kh6 {[%clk 0:00:05.2]} 55. Qd2+ {[%clk 0:00:03.3]}
55... Kh7 {[%clk 0:00:05.4]} 56. Qd7+ {[%clk 0:00:03.3]} 56... Kh6 {[%clk
0:00:05.7]} 57. Qd2+ {[%clk 0:00:03.1]} 57... Kg7 {[%clk 0:00:06.3]} 58. Qd7+
{[%clk 0:00:03]} 58... Bf7 {[%clk 0:00:06.5]} 0-1

[Event "*** Titled Tuesday Blitz"]
[Site "Chess.com"]
[Date "2020.05.19"]
[Round "7"]
[White "adricalderon8"]
[Black "Paul66666"]
[Result "0-1"]
[WhiteElo "2432"]
[BlackElo "2605"]
[TimeControl "180+1"]
[EndTime "13:21:46 PDT"]
[Termination "Paul66666 won on time"]

1. e4 {[%clk 0:03:00.9]} 1... c5 {[%clk 0:02:58.1]} 2. Nf3 {[%clk 0:03:00.4]}
2... Nc6 {[%clk 0:02:56.4]} 3. d4 {[%clk 0:02:59.5]} 3... cxd4 {[%clk
0:02:57.3]} 4. Nxd4 {[%clk 0:03:00.1]} 4... Nf6 {[%clk 0:02:56.5]} 5. Nc3 {[%clk
0:02:59.8]} 5... d6 {[%clk 0:02:55.2]} 6. Bc4 {[%clk 0:02:59]} 6... Bd7 {[%clk
0:02:52.7]} 7. O-O {[%clk 0:02:55.8]} 7... Rc8 {[%clk 0:02:37.4]} 8. Re1 {[%clk
0:02:40.7]} 8... Ne5 {[%clk 0:02:32]} 9. Bf1 {[%clk 0:02:40.1]} 9... e6 {[%clk
0:02:29.9]} 10. f4 {[%clk 0:02:34.9]} 10... Nc4 {[%clk 0:02:28.9]} 11. b3 {[%clk
0:02:31.2]} 11... Nb6 {[%clk 0:02:23.6]} 12. Bb2 {[%clk 0:02:31.4]} 12... Be7
{[%clk 0:02:21.2]} 13. Kh1 {[%clk 0:02:31.3]} 13... O-O {[%clk 0:02:19.7]} 14.
a4 {[%clk 0:02:30.6]} 14... a6 {[%clk 0:02:12.9]} 15. a5 {[%clk 0:02:27.6]}
15... Na8 {[%clk 0:02:12.3]} 16. e5 {[%clk 0:02:28.1]} 16... Nd5 {[%clk
0:02:08.1]} 17. Nxd5 {[%clk 0:02:27.6]} 17... exd5 {[%clk 0:02:07.7]} 18. e6
{[%clk 0:02:25.8]} 18... fxe6 {[%clk 0:02:02.2]} 19. Nxe6 {[%clk 0:02:25.6]}
19... Bxe6 {[%clk 0:02:01.1]} 20. Rxe6 {[%clk 0:02:25.7]} 20... Nc7 {[%clk
0:01:58.8]} 21. Re1 {[%clk 0:02:20.3]} 21... Bf6 {[%clk 0:01:56.2]} 22. Bd4
{[%clk 0:02:09.2]} 22... Qd7 {[%clk 0:01:43.9]} 23. g3 {[%clk 0:01:59.8]} 23...
Qf5 {[%clk 0:01:26]} 24. Bg2 {[%clk 0:01:57.2]} 24... Kh8 {[%clk 0:01:06.1]} 25.
c3 {[%clk 0:01:41.7]} 25... Nb5 {[%clk 0:01:02.6]} 26. Bxf6 {[%clk 0:01:39.4]}
26... Qxf6 {[%clk 0:01:01.4]} 27. Qxd5 {[%clk 0:01:39.5]} 27... Nxc3 {[%clk
0:00:58.9]} 28. Qxb7 {[%clk 0:01:38]} 28... d5 {[%clk 0:00:51.5]} 29. Qb6 {[%clk
0:01:03.5]} 29... Rc6 {[%clk 0:00:41.5]} 30. Qb4 {[%clk 0:01:01.8]} 30... Rfc8
{[%clk 0:00:37.9]} 31. h4 {[%clk 0:00:51.3]} 31... h5 {[%clk 0:00:36.9]} 32. Re5
{[%clk 0:00:49.4]} 32... Qg6 {[%clk 0:00:25.1]} 33. Rg5 {[%clk 0:00:47.1]} 33...
Qc2 {[%clk 0:00:25.5]} 34. Qe7 {[%clk 0:00:34.7]} 34... Rg6 {[%clk 0:00:14.4]}
35. Rxg6 {[%clk 0:00:28.1]} 35... Qxg6 {[%clk 0:00:12.1]} 36. Qg5 {[%clk
0:00:28.4]} 36... Qxg5 {[%clk 0:00:11.4]} 37. hxg5 {[%clk 0:00:28.6]} 37... d4
{[%clk 0:00:12.3]} 38. Kg1 {[%clk 0:00:23.5]} 38... d3 {[%clk 0:00:12.5]} 39.
Kf2 {[%clk 0:00:22.2]} 39... d2 {[%clk 0:00:13.4]} 40. Bf3 {[%clk 0:00:22.5]}
40... Re8 {[%clk 0:00:13.7]} 41. b4 {[%clk 0:00:20.1]} 41... Rb8 {[%clk
0:00:14.6]} 42. Ra3 {[%clk 0:00:18.8]} 42... d1=Q {[%clk 0:00:13.6]} 43. Bxd1
{[%clk 0:00:19.1]} 43... Nxd1+ {[%clk 0:00:13.8]} 44. Ke2 {[%clk 0:00:19.1]}
44... Nb2 {[%clk 0:00:14.7]} 45. Rb3 {[%clk 0:00:17.8]} 45... Nc4 {[%clk
0:00:14.9]} 46. Rc3 {[%clk 0:00:12.7]} 46... Nd6 {[%clk 0:00:15.1]} 47. Rc6
{[%clk 0:00:12.1]} 47... Nf5 {[%clk 0:00:13.2]} 48. Rb6 {[%clk 0:00:10.9]} 48...
Re8+ {[%clk 0:00:11.9]} 49. Kf2 {[%clk 0:00:10.2]} 49... Nd4 {[%clk 0:00:11.7]}
50. Rxa6 {[%clk 0:00:09]} 50... Re2+ {[%clk 0:00:11.6]} 51. Kf1 {[%clk
0:00:09.3]} 51... Rb2 {[%clk 0:00:12.5]} 52. Rb6 {[%clk 0:00:09.5]} 52... g6
{[%clk 0:00:11.4]} 53. a6 {[%clk 0:00:08.4]} 53... Ra2 {[%clk 0:00:10.6]} 54. b5
{[%clk 0:00:08.1]} 54... Ra5 {[%clk 0:00:07.7]} 55. Rxg6 {[%clk 0:00:04.6]}
55... Nxb5 {[%clk 0:00:06.9]} 56. Rh6+ {[%clk 0:00:05]} 56... Kg7 {[%clk
0:00:06.4]} 57. Rxh5 {[%clk 0:00:05.6]} 57... Rxa6 {[%clk 0:00:06.2]} 58. Rh2
{[%clk 0:00:05.9]} 58... Ra1+ {[%clk 0:00:06.6]} 59. Kg2 {[%clk 0:00:05.8]}
59... Ra3 {[%clk 0:00:07.4]} 60. Kh3 {[%clk 0:00:06.4]} 60... Nd4 {[%clk
0:00:07.3]} 61. Rd2 {[%clk 0:00:05.8]} 61... Nf5 {[%clk 0:00:06.3]} 62. Rg2
{[%clk 0:00:04]} 62... Kg6 {[%clk 0:00:04.9]} 63. Kh2 {[%clk 0:00:04]} 63... Ne3
{[%clk 0:00:04.7]} 64. Rb2 {[%clk 0:00:02.6]} 64... Ng4+ {[%clk 0:00:05.2]} 65.
Kh3 {[%clk 0:00:02.4]} 65... Ne3 {[%clk 0:00:06.1]} 0-1